[Event "Titled Tuesday Blitz August 09 Early 2022"]
[White "Kravtsiv, Martyn"]
[Black "Sarana, Alexey"]
[WhiteFideId "14113147"]
[BlackFideId "24133795"]
[WhiteElo "2694"]
[BlackElo "2666"]
[Result "0-1"]
[Round "07"]
[TimeControl "180+1"]
[Date "2022.08.09"]
[WhiteClock "0:00:02"]
[BlackClock "0:00:08"]

1. e4 {[%clk 0:03:00]}  c5 {[%clk 0:02:56]} 2. Nf3 {[%clk 0:03:00]}  d6 {[%clk 0:02:57]} 3. Bb5+ {[%clk 0:03:00]}  Nd7 {[%clk 0:02:55]} 4. d4 {[%clk 0:02:59]}  cxd4 {[%clk 0:02:55]} 5. Qxd4 {[%clk 0:02:59]}  a6 {[%clk 0:02:55]} 6. Bxd7+ {[%clk 0:02:59]}  Bxd7 {[%clk 0:02:56]} 7. O-O {[%clk 0:02:58]}  Nf6 {[%clk 0:02:51]} 8. Bg5 {[%clk 0:02:57]}  e6 {[%clk 0:02:51]} 9. Nbd2 {[%clk 0:02:57]}  Be7 {[%clk 0:02:49]} 10. Nc4 {[%clk 0:02:49]}  Bb5 {[%clk 0:02:37]} 11. Bxf6 {[%clk 0:02:19]}  gxf6 {[%clk 0:02:36]} 12. Rfe1 {[%clk 0:02:17]}  Rc8 {[%clk 0:02:35]} 13. Ne3 {[%clk 0:02:16]}  Qa5 {[%clk 0:02:35]} 14. c4 {[%clk 0:02:13]}  Bc6 {[%clk 0:02:34]} 15. Nd5 {[%clk 0:02:08]}  Kf8 {[%clk 0:02:15]} 16. b4 {[%clk 0:01:56]}  Qd8 {[%clk 0:02:05]} 17. Nb6 {[%clk 0:01:44]}  Rb8 {[%clk 0:02:02]} 18. Rad1 {[%clk 0:01:24]}  h5 {[%clk 0:02:01]} 19. a4 {[%clk 0:01:23]}  Qc7 {[%clk 0:02:00]} 20. a5 {[%clk 0:01:19]}  Rg8 {[%clk 0:01:57]} 21. g3 {[%clk 0:01:18]}  Rg4 {[%clk 0:01:55]} 22. h3 {[%clk 0:01:17]}  Rg6 {[%clk 0:01:55]} 23. Qe3 {[%clk 0:01:17]}  Kg8 {[%clk 0:01:48]} 24. Kh2 {[%clk 0:01:15]}  Kh7 {[%clk 0:01:47]} 25. Rc1 {[%clk 0:01:04]}  Bf8 {[%clk 0:01:25]} 26. Nh4 {[%clk 0:01:02]}  Rg8 {[%clk 0:01:17]} 27. Qf3 {[%clk 0:01:01]}  Bh6 {[%clk 0:01:10]} 28. Qxh5 {[%clk 0:00:57]}  Rg7 {[%clk 0:00:59]} 29. Qf3 {[%clk 0:00:37]}  Bg5 {[%clk 0:00:56]} 30. Ng2 {[%clk 0:00:35]}  Bxc1 {[%clk 0:00:48]} 31. Rxc1 {[%clk 0:00:33]}  Qe7 {[%clk 0:00:48]} 32. Qh5+ {[%clk 0:00:30]}  Kg8 {[%clk 0:00:48]} 33. Re1 {[%clk 0:00:30]}  f5 {[%clk 0:00:39]} 34. exf5 {[%clk 0:00:26]}  Qf6 {[%clk 0:00:40]} 35. Ne3 {[%clk 0:00:24]}  Rg5 {[%clk 0:00:19]} 36. Qh4 {[%clk 0:00:23]}  Rxf5 {[%clk 0:00:14]} 37. Nxf5 {[%clk 0:00:21]}  Qxf5 {[%clk 0:00:15]} 38. Qf4 {[%clk 0:00:20]}  Qxf4 {[%clk 0:00:15]} 39. gxf4 {[%clk 0:00:21]}  Kf8 {[%clk 0:00:15]} 40. Rg1 {[%clk 0:00:20]}  Ke7 {[%clk 0:00:15]} 41. h4 {[%clk 0:00:21]}  Rh8 {[%clk 0:00:16]} 42. Kh3 {[%clk 0:00:21]}  Be4 {[%clk 0:00:16]} 43. Rg5 {[%clk 0:00:20]}  Bf5+ {[%clk 0:00:16]} 44. Kg3 {[%clk 0:00:20]}  Kf8 {[%clk 0:00:15]} 45. Nd7+ {[%clk 0:00:19]}  Ke7 {[%clk 0:00:15]} 46. Nb6 {[%clk 0:00:19]}  Bd3 {[%clk 0:00:14]} 47. c5 {[%clk 0:00:18]}  d5 {[%clk 0:00:14]} 48. h5 {[%clk 0:00:17]}  Kf8 {[%clk 0:00:09]} 49. Nd7+ {[%clk 0:00:16]}  Ke8 {[%clk 0:00:08]} 50. Ne5 {[%clk 0:00:16]}  f6 {[%clk 0:00:08]} 51. Nxd3 {[%clk 0:00:14]}  fxg5 {[%clk 0:00:08]} 52. fxg5 {[%clk 0:00:15]}  Rxh5 {[%clk 0:00:09]} 53. f4 {[%clk 0:00:14]}  Rh1 {[%clk 0:00:07]} 54. Kf2 {[%clk 0:00:13]}  Rh3 {[%clk 0:00:06]} 55. Ne5 {[%clk 0:00:12]}  Rb3 {[%clk 0:00:06]} 56. g6 {[%clk 0:00:12]}  Kf8 {[%clk 0:00:06]} 57. c6 {[%clk 0:00:11]}  bxc6 {[%clk 0:00:06]} 58. Nxc6 {[%clk 0:00:12]}  Kg7 {[%clk 0:00:07]} 59. Nd4 {[%clk 0:00:08]}  Rxb4 {[%clk 0:00:07]} 60. Nxe6+ {[%clk 0:00:09]}  Kxg6 {[%clk 0:00:07]} 61. Nc7 {[%clk 0:00:10]}  Rxf4+ {[%clk 0:00:04]} 62. Ke3 {[%clk 0:00:10]}  Re4+ {[%clk 0:00:05]} 63. Kd3 {[%clk 0:00:10]}  Kf5 {[%clk 0:00:04]} 64. Nxd5 {[%clk 0:00:08]}  Re6 {[%clk 0:00:03]} 65. Kc4 {[%clk 0:00:07]}  Rc6+ {[%clk 0:00:04]} 66. Kd4 {[%clk 0:00:07]}  Ke6 {[%clk 0:00:04]} 67. Nb4 {[%clk 0:00:07]}  Rd6+ {[%clk 0:00:04]} 68. Kc5 {[%clk 0:00:08]}  Kd7 {[%clk 0:00:05]} 69. Nd5 {[%clk 0:00:07]}  Rh6 {[%clk 0:00:05]} 70. Nb6+ {[%clk 0:00:06]}  Kc7 {[%clk 0:00:06]} 71. Nd5+ {[%clk 0:00:06]}  Kb7 {[%clk 0:00:06]} 72. Nb4 {[%clk 0:00:06]}  Rh5+ {[%clk 0:00:06]} 73. Nd5 {[%clk 0:00:07]}  Rh1 {[%clk 0:00:07]} 74. Nb6 {[%clk 0:00:06]}  Rb1 {[%clk 0:00:06]} 75. Nc4 {[%clk 0:00:06]}  Rb5+ {[%clk 0:00:06]} 76. Kd6 {[%clk 0:00:06]}  Rh5 {[%clk 0:00:04]} 77. Ne5 {[%clk 0:00:06]}  Rh4 {[%clk 0:00:04]} 78. Kd5 {[%clk 0:00:06]}  Rb4 {[%clk 0:00:04]} 79. Nc4 {[%clk 0:00:06]}  Rb1 {[%clk 0:00:03]} 80. Kc5 {[%clk 0:00:06]}  Rb3 {[%clk 0:00:04]} 81. Nd6+ {[%clk 0:00:03]}  Kc7 {[%clk 0:00:03]} 82. Nc4 {[%clk 0:00:03]}  Rb5+ {[%clk 0:00:04]} 83. Kd4 {[%clk 0:00:04]}  Rh5 {[%clk 0:00:03]} 84. Ne5 {[%clk 0:00:03]}  Kd6 {[%clk 0:00:04]} 85. Nc4+ {[%clk 0:00:03]}  Ke6 {[%clk 0:00:04]} 86. Ke4 {[%clk 0:00:02]}  Rh4+ {[%clk 0:00:05]} 87. Kd3 {[%clk 0:00:03]}  Kd5 {[%clk 0:00:05]} 88. Nb6+ {[%clk 0:00:03]}  Kc6 {[%clk 0:00:05]} 89. Nc4 {[%clk 0:00:02]}  Kb5 {[%clk 0:00:06]} 90. Ne5 {[%clk 0:00:03]}  Kxa5 {[%clk 0:00:06]} 91. Kc3 {[%clk 0:00:03]}  Kb5 {[%clk 0:00:06]} 92. Kb2 {[%clk 0:00:03]}  a5 {[%clk 0:00:07]} 93. Nf3 {[%clk 0:00:03]}  Rh3 {[%clk 0:00:07]} 94. Nd4+ {[%clk 0:00:03]}  Kc4 {[%clk 0:00:07]} 95. Nc6 {[%clk 0:00:03]}  a4 {[%clk 0:00:08]} 96. Ka2 {[%clk 0:00:04]}  Re3 {[%clk 0:00:07]} 97. Na5+ {[%clk 0:00:03]}  Kc5 {[%clk 0:00:07]} 98. Nb7+ {[%clk 0:00:03]}  Kc6 {[%clk 0:00:07]} 99. Na5+ {[%clk 0:00:03]}  Kb5 {[%clk 0:00:07]} 100. Nb7 {[%clk 0:00:03]}  Rd3 {[%clk 0:00:08]} 101. Kb2 {[%clk 0:00:02]}  Rd7 {[%clk 0:00:08]} 0-1


[Site "https://www.chess.com"]

[Event "Titled Tuesday Blitz August 09 Early 2022"]
[White "Kukreja, Sankalp"]
[Black "Vlassov, Nikolai"]
[WhiteFideId "45027676"]
[BlackFideId "4103360"]
[WhiteElo "2004"]
[BlackElo "2324"]
[Result "1-0"]
[Round "07"]
[TimeControl "180+1"]
[Date "2022.08.09"]
[WhiteClock "0:00:24"]
[BlackClock "0:00:06"]

1. e4 {[%clk 0:03:00]}  c5 {[%clk 0:02:58]} 2. Nf3 {[%clk 0:03:00]}  d6 {[%clk 0:02:57]} 3. d4 {[%clk 0:03:00]}  cxd4 {[%clk 0:02:56]} 4. Nxd4 {[%clk 0:03:01]}  Nf6 {[%clk 0:02:56]} 5. Nc3 {[%clk 0:03:02]}  g6 {[%clk 0:02:56]} 6. Be3 {[%clk 0:03:00]}  a6 {[%clk 0:02:51]} 7. f3 {[%clk 0:03:00]}  Nbd7 {[%clk 0:02:48]} 8. Qd2 {[%clk 0:03:00]}  Qc7 {[%clk 0:02:48]} 9. O-O-O {[%clk 0:02:58]}  b5 {[%clk 0:02:48]} 10. g4 {[%clk 0:02:55]}  Nb6 {[%clk 0:02:44]} 11. g5 {[%clk 0:02:53]}  Nfd7 {[%clk 0:02:43]} 12. h4 {[%clk 0:02:52]}  Ne5 {[%clk 0:02:43]} 13. Nd5 {[%clk 0:02:48]}  Nxd5 {[%clk 0:02:42]} 14. exd5 {[%clk 0:02:49]}  Bb7 {[%clk 0:02:42]} 15. f4 {[%clk 0:02:44]}  Nc4 {[%clk 0:01:55]} 16. Bxc4 {[%clk 0:02:36]}  Qxc4 {[%clk 0:01:53]} 17. Kb1 {[%clk 0:02:14]}  Qxd5 {[%clk 0:01:46]} 18. Rhe1 {[%clk 0:02:09]}  Bg7 {[%clk 0:01:42]} 19. h5 {[%clk 0:02:07]}  O-O {[%clk 0:01:42]} 20. Qh2 {[%clk 0:01:55]}  Qg2 {[%clk 0:01:36]} 21. Qh4 {[%clk 0:01:53]}  Rac8 {[%clk 0:01:36]} 22. hxg6 {[%clk 0:01:43]}  fxg6 {[%clk 0:01:26]} 23. Rd2 {[%clk 0:01:39]}  Qe4 {[%clk 0:01:14]} 24. Rh2 {[%clk 0:01:36]}  h5 {[%clk 0:01:08]} 25. gxh6 {[%clk 0:01:33]}  Bxd4 {[%clk 0:01:08]} 26. Bxd4 {[%clk 0:01:31]}  Qxd4 {[%clk 0:01:04]} 27. Qxe7 {[%clk 0:01:27]}  Rf7 {[%clk 0:00:56]} 28. h7+ {[%clk 0:01:13]}  Kg7 {[%clk 0:00:56]} 29. Qh4 {[%clk 0:01:07]}  Kh8 {[%clk 0:00:35]} 30. Qg4 {[%clk 0:01:01]}  Qf6 {[%clk 0:00:17]} 31. a3 {[%clk 0:00:47]}  Rxh7 {[%clk 0:00:14]} 32. Rxh7+ {[%clk 0:00:45]}  Kxh7 {[%clk 0:00:15]} 33. Qd7+ {[%clk 0:00:45]}  Kg8 {[%clk 0:00:06]} 34. Qxb7 {[%clk 0:00:43]}  Qf5 {[%clk 0:00:06]} 35. Re2 {[%clk 0:00:32]}  a5 {[%clk 0:00:07]} 36. Rh2 {[%clk 0:00:25]}  b4 {[%clk 0:00:05]} 37. Qh7+ {[%clk 0:00:24]}  Kf8 {[%clk 0:00:05]} 38. Qh8+ {[%clk 0:00:24]}  Ke7 {[%clk 0:00:06]} 39. Rh7+ {[%clk 0:00:24]}  Ke6 {[%clk 0:00:06]} 40. Qxc8+ {[%clk 0:00:24]} 1-0


[Site "https://www.chess.com"]

[Event "Titled Tuesday Blitz August 09 Early 2022"]
[White "Large, Peter G"]
[Black "Bolourchifard, Farzad"]
[WhiteFideId "400866"]
[BlackFideId "12510084"]
[WhiteElo "2064"]
[BlackElo "2317"]
[Result "0-1"]
[Round "07"]
[TimeControl "180+1"]
[Date "2022.08.09"]
[WhiteClock "0:00:07"]
[BlackClock "0:00:17"]

1. Nf3 {[%clk 0:02:57]}  d5 {[%clk 0:03:00]} 2. b3 {[%clk 0:02:57]}  Nf6 {[%clk 0:03:00]} 3. Bb2 {[%clk 0:02:57]}  c5 {[%clk 0:03:01]} 4. e3 {[%clk 0:02:57]}  Nc6 {[%clk 0:03:02]} 5. Bb5 {[%clk 0:02:57]}  a6 {[%clk 0:02:57]} 6. Bxc6+ {[%clk 0:02:57]}  bxc6 {[%clk 0:02:58]} 7. Nc3 {[%clk 0:02:48]}  e6 {[%clk 0:02:58]} 8. Na4 {[%clk 0:02:48]}  Bd6 {[%clk 0:02:56]} 9. Ba3 {[%clk 0:02:42]}  Nd7 {[%clk 0:02:56]} 10. O-O {[%clk 0:02:38]}  O-O {[%clk 0:02:55]} 11. d4 {[%clk 0:02:35]}  Qe7 {[%clk 0:02:55]} 12. Rc1 {[%clk 0:02:09]}  a5 {[%clk 0:02:37]} 13. Re1 {[%clk 0:02:08]}  Ba6 {[%clk 0:02:26]} 14. dxc5 {[%clk 0:01:48]}  Nxc5 {[%clk 0:02:25]} 15. Nxc5 {[%clk 0:01:48]}  Bxc5 {[%clk 0:02:25]} 16. Bxc5 {[%clk 0:01:48]}  Qxc5 {[%clk 0:02:26]} 17. e4 {[%clk 0:01:32]}  Qa3 {[%clk 0:02:22]} 18. Ra1 {[%clk 0:01:20]}  Rfd8 {[%clk 0:02:15]} 19. Qc1 {[%clk 0:01:20]}  Qc5 {[%clk 0:01:56]} 20. c3 {[%clk 0:01:19]}  Bd3 {[%clk 0:01:51]} 21. e5 {[%clk 0:01:15]}  a4 {[%clk 0:01:48]} 22. b4 {[%clk 0:01:10]}  Qb5 {[%clk 0:01:34]} 23. a3 {[%clk 0:01:07]}  c5 {[%clk 0:01:31]} 24. Qe3 {[%clk 0:01:06]}  Rac8 {[%clk 0:01:25]} 25. Rad1 {[%clk 0:01:01]}  Bg6 {[%clk 0:01:24]} 26. h4 {[%clk 0:00:54]}  d4 {[%clk 0:01:19]} 27. Qd2 {[%clk 0:00:33]}  Bh5 {[%clk 0:01:09]} 28. bxc5 {[%clk 0:00:33]}  Bxf3 {[%clk 0:01:06]} 29. gxf3 {[%clk 0:00:33]}  d3 {[%clk 0:01:05]} 30. Re3 {[%clk 0:00:32]}  Qxc5 {[%clk 0:00:37]} 31. Rxd3 {[%clk 0:00:33]}  Rxd3 {[%clk 0:00:36]} 32. Qxd3 {[%clk 0:00:33]}  h6 {[%clk 0:00:36]} 33. f4 {[%clk 0:00:31]}  Qxa3 {[%clk 0:00:33]} 34. Qa6 {[%clk 0:00:30]}  Qxc3 {[%clk 0:00:23]} 35. Qxa4 {[%clk 0:00:27]}  Qf3 {[%clk 0:00:23]} 36. Re1 {[%clk 0:00:16]}  Qg4+ {[%clk 0:00:22]} 37. Kf1 {[%clk 0:00:15]}  Qxh4 {[%clk 0:00:21]} 38. Qa6 {[%clk 0:00:12]}  Rd8 {[%clk 0:00:17]} 39. Qb6 {[%clk 0:00:11]}  g6 {[%clk 0:00:18]} 40. Rb1 {[%clk 0:00:09]}  Kg7 {[%clk 0:00:18]} 41. Qe3 {[%clk 0:00:08]}  Rc8 {[%clk 0:00:17]} 42. Kg2 {[%clk 0:00:07]}  Rc4 {[%clk 0:00:17]} 0-1


[Site "https://www.chess.com"]

[Event "Titled Tuesday Blitz August 09 Early 2022"]
[White "Leve, Nitai"]
[Black "Rostomyan, Mikayel"]
[WhiteFideId "2006898"]
[BlackFideId "13313754"]
[WhiteElo "2144"]
[BlackElo "1426"]
[Result "1/2-1/2"]
[Round "07"]
[TimeControl "180+1"]
[Date "2022.08.09"]
[WhiteClock "0:00:10"]
[BlackClock "0:00:13"]

1. e4 {[%clk 0:03:00]}  c5 {[%clk 0:02:58]} 2. Nf3 {[%clk 0:02:56]}  Nc6 {[%clk 0:02:59]} 3. d4 {[%clk 0:02:55]}  cxd4 {[%clk 0:02:59]} 4. Nxd4 {[%clk 0:02:55]}  g6 {[%clk 0:03:00]} 5. Nc3 {[%clk 0:02:56]}  Bg7 {[%clk 0:03:01]} 6. Be3 {[%clk 0:02:56]}  Nf6 {[%clk 0:03:01]} 7. Be2 {[%clk 0:02:57]}  d5 {[%clk 0:03:00]} 8. Nxc6 {[%clk 0:02:46]}  bxc6 {[%clk 0:02:59]} 9. e5 {[%clk 0:02:46]}  Nd7 {[%clk 0:02:55]} 10. f4 {[%clk 0:02:45]}  f6 {[%clk 0:02:55]} 11. e6 {[%clk 0:02:43]}  Nf8 {[%clk 0:02:54]} 12. f5 {[%clk 0:02:42]}  gxf5 {[%clk 0:02:54]} 13. Bh5+ {[%clk 0:02:42]}  Ng6 {[%clk 0:02:54]} 14. Qe2 {[%clk 0:02:38]}  Bxe6 {[%clk 0:02:39]} 15. O-O {[%clk 0:02:24]}  Qd7 {[%clk 0:02:35]} 16. Na4 {[%clk 0:02:16]}  Bf7 {[%clk 0:02:27]} 17. Nc5 {[%clk 0:02:14]}  Qc8 {[%clk 0:02:27]} 18. g4 {[%clk 0:01:54]}  f4 {[%clk 0:01:39]} 19. Bxf4 {[%clk 0:01:39]}  O-O {[%clk 0:01:38]} 20. Bxg6 {[%clk 0:01:31]}  hxg6 {[%clk 0:01:30]} 21. g5 {[%clk 0:01:13]}  fxg5 {[%clk 0:00:42]} 22. Bxg5 {[%clk 0:01:09]}  Bd4+ {[%clk 0:00:43]} 23. Be3 {[%clk 0:01:09]}  Bxb2 {[%clk 0:00:43]} 24. Rab1 {[%clk 0:01:04]}  Bf6 {[%clk 0:00:43]} 25. Rb7 {[%clk 0:00:54]}  Qh3 {[%clk 0:00:41]} 26. Nd7 {[%clk 0:00:40]}  Be6 {[%clk 0:00:19]} 27. Nxf8 {[%clk 0:00:40]}  Rxf8 {[%clk 0:00:20]} 28. Rxa7 {[%clk 0:00:33]}  Bg4 {[%clk 0:00:18]} 29. Qd3 {[%clk 0:00:20]}  Bf5 {[%clk 0:00:13]} 30. Qd2 {[%clk 0:00:16]}  Be5 {[%clk 0:00:09]} 31. Rxe7 {[%clk 0:00:07]}  Bd6 {[%clk 0:00:07]} 32. Ra7 {[%clk 0:00:02]}  Bxh2+ {[%clk 0:00:05]} 33. Qxh2 {[%clk 0:00:02]}  Qxe3+ {[%clk 0:00:06]} 34. Qf2 {[%clk 0:00:02]}  Qg5+ {[%clk 0:00:06]} 35. Qg2 {[%clk 0:00:03]}  Qe3+ {[%clk 0:00:06]} 36. Qf2 {[%clk 0:00:03]}  Qh3 {[%clk 0:00:06]} 37. Qg2 {[%clk 0:00:02]}  Qxg2+ {[%clk 0:00:05]} 38. Kxg2 {[%clk 0:00:03]}  Bh3+ {[%clk 0:00:06]} 39. Kxh3 {[%clk 0:00:04]}  Rxf1 {[%clk 0:00:06]} 40. a4 {[%clk 0:00:04]}  Rf3+ {[%clk 0:00:07]} 41. Kg4 {[%clk 0:00:04]}  Rc3 {[%clk 0:00:07]} 42. Kg5 {[%clk 0:00:05]}  Rxc2 {[%clk 0:00:06]} 43. Kxg6 {[%clk 0:00:05]}  Kf8 {[%clk 0:00:07]} 44. Kf6 {[%clk 0:00:05]}  Ke8 {[%clk 0:00:07]} 45. Ke6 {[%clk 0:00:06]}  Kd8 {[%clk 0:00:08]} 46. Kd6 {[%clk 0:00:07]}  Kc8 {[%clk 0:00:08]} 47. a5 {[%clk 0:00:07]}  Kb8 {[%clk 0:00:09]} 48. Rh7 {[%clk 0:00:07]}  d4 {[%clk 0:00:09]} 49. a6 {[%clk 0:00:06]}  d3 {[%clk 0:00:09]} 50. Rh3 {[%clk 0:00:06]}  d2 {[%clk 0:00:09]} 51. Rd3 {[%clk 0:00:06]}  c5 {[%clk 0:00:09]} 52. Kc6 {[%clk 0:00:04]}  c4 {[%clk 0:00:07]} 53. Rd7 {[%clk 0:00:04]}  c3 {[%clk 0:00:05]} 54. a7+ {[%clk 0:00:03]}  Ka8 {[%clk 0:00:06]} 55. Kb6 {[%clk 0:00:03]}  Rb2+ {[%clk 0:00:06]} 56. Ka6 {[%clk 0:00:04]}  Ra2+ {[%clk 0:00:07]} 57. Kb6 {[%clk 0:00:04]}  Rb2+ {[%clk 0:00:05]} 58. Ka6 {[%clk 0:00:04]}  d1=Q {[%clk 0:00:05]} 59. Rxd1 {[%clk 0:00:03]}  Rd2 {[%clk 0:00:06]} 60. Rc1 {[%clk 0:00:02]}  Rd6+ {[%clk 0:00:06]} 61. Kb5 {[%clk 0:00:03]}  Kxa7 {[%clk 0:00:07]} 62. Kc4 {[%clk 0:00:04]}  Rc6+ {[%clk 0:00:07]} 63. Kd3 {[%clk 0:00:04]}  Kb6 {[%clk 0:00:07]} 64. Kc2 {[%clk 0:00:05]}  Rd6 {[%clk 0:00:08]} 65. Rb1+ {[%clk 0:00:05]}  Kc5 {[%clk 0:00:08]} 66. Rb3 {[%clk 0:00:06]}  Kd4 {[%clk 0:00:07]} 67. Rxc3 {[%clk 0:00:07]}  Rh6 {[%clk 0:00:08]} 68. Rd3+ {[%clk 0:00:07]}  Kc4 {[%clk 0:00:09]} 69. Rd2 {[%clk 0:00:08]}  Ra6 {[%clk 0:00:08]} 70. Rd8 {[%clk 0:00:07]}  Ra2+ {[%clk 0:00:08]} 71. Kb1 {[%clk 0:00:08]}  Rh2 {[%clk 0:00:09]} 72. Rc8+ {[%clk 0:00:08]}  Kb3 {[%clk 0:00:09]} 73. Rb8+ {[%clk 0:00:08]}  Ka3 {[%clk 0:00:10]} 74. Ra8+ {[%clk 0:00:08]}  Kb4 {[%clk 0:00:10]} 75. Rb8+ {[%clk 0:00:09]}  Kc5 {[%clk 0:00:11]} 76. Rb2 {[%clk 0:00:09]}  Rh1+ {[%clk 0:00:11]} 77. Ka2 {[%clk 0:00:09]}  Kc4 {[%clk 0:00:12]} 78. Rg2 {[%clk 0:00:09]}  Rh6 {[%clk 0:00:10]} 79. Rg4+ {[%clk 0:00:09]}  Kc3 {[%clk 0:00:11]} 80. Rg3+ {[%clk 0:00:09]}  Kc2 {[%clk 0:00:11]} 81. Rg2+ {[%clk 0:00:10]}  Kd3 {[%clk 0:00:12]} 82. Rg3+ {[%clk 0:00:10]}  Ke2 {[%clk 0:00:13]} 83. Rg2+ {[%clk 0:00:11]}  Kf3 {[%clk 0:00:13]} 84. Rb2 {[%clk 0:00:11]}  Ra6+ {[%clk 0:00:13]} 85. Kb3 {[%clk 0:00:11]}  Ke3 {[%clk 0:00:13]} 86. Kc4 {[%clk 0:00:11]}  Rc6+ {[%clk 0:00:11]} 87. Kd5 {[%clk 0:00:11]}  Rc1 {[%clk 0:00:12]} 88. Rh2 {[%clk 0:00:11]}  Kf4 {[%clk 0:00:11]} 89. Rd2 {[%clk 0:00:10]}  Rc8 {[%clk 0:00:10]} 90. Rd4+ {[%clk 0:00:11]}  Kf5 {[%clk 0:00:10]} 91. Ra4 {[%clk 0:00:11]}  Rd8+ {[%clk 0:00:10]} 92. Kc6 {[%clk 0:00:11]}  Ke6 {[%clk 0:00:10]} 93. Kc7 {[%clk 0:00:11]}  Rd1 {[%clk 0:00:10]} 94. Re4+ {[%clk 0:00:11]}  Kd5 {[%clk 0:00:10]} 95. Rh4 {[%clk 0:00:11]}  Rc1+ {[%clk 0:00:11]} 96. Kd7 {[%clk 0:00:11]}  Ra1 {[%clk 0:00:11]} 97. Rh5+ {[%clk 0:00:11]}  Ke4 {[%clk 0:00:11]} 98. Rh4+ {[%clk 0:00:12]}  Kf5 {[%clk 0:00:12]} 99. Rh5+ {[%clk 0:00:12]}  Kg6 {[%clk 0:00:12]} 100. Rh2 {[%clk 0:00:12]}  Rd1+ {[%clk 0:00:12]} 101. Kc6 {[%clk 0:00:12]}  Kf6 {[%clk 0:00:13]} 102. Rf2+ {[%clk 0:00:10]} 1/2-1/2


[Site "https://www.chess.com"]

[Event "Titled Tuesday Blitz August 09 Early 2022"]
[White "Levitskiy, Andrey"]
[Black "Orzech, Dominik"]
[WhiteFideId "14132885"]
[BlackFideId "1115065"]
[WhiteElo "2293"]
[BlackElo "2272"]
[Result "1-0"]
[Round "07"]
[TimeControl "180+1"]
[Date "2022.08.09"]
[WhiteClock "0:00:48"]
[BlackClock "0:01:40"]

1. e4 {[%clk 0:03:00]}  e6 {[%clk 0:02:54]} 2. d4 {[%clk 0:02:59]}  d5 {[%clk 0:02:54]} 3. Bd3 {[%clk 0:03:00]}  dxe4 {[%clk 0:02:53]} 4. Bxe4 {[%clk 0:03:01]}  Nf6 {[%clk 0:02:53]} 5. Bf3 {[%clk 0:03:01]}  c5 {[%clk 0:02:53]} 6. Ne2 {[%clk 0:03:02]}  Nc6 {[%clk 0:02:53]} 7. Be3 {[%clk 0:03:02]}  Nd5 {[%clk 0:02:47]} 8. Bxd5 {[%clk 0:03:02]}  Qxd5 {[%clk 0:02:47]} 9. Nbc3 {[%clk 0:03:02]}  Qxg2 {[%clk 0:02:46]} 10. Rg1 {[%clk 0:03:03]}  Qh3 {[%clk 0:02:44]} 11. Bf4 {[%clk 0:03:03]}  a6 {[%clk 0:02:40]} 12. d5 {[%clk 0:02:26]}  Nb4 {[%clk 0:02:37]} 13. a3 {[%clk 0:02:17]}  Nxd5 {[%clk 0:02:36]} 14. Nxd5 {[%clk 0:02:18]}  exd5 {[%clk 0:02:36]} 15. Qxd5 {[%clk 0:02:19]}  Qe6 {[%clk 0:02:35]} 16. Qd2 {[%clk 0:02:12]}  Bd7 {[%clk 0:02:32]} 17. O-O-O {[%clk 0:02:09]}  O-O-O {[%clk 0:02:31]} 18. Nc3 {[%clk 0:02:02]}  f6 {[%clk 0:02:17]} 19. Rge1 {[%clk 0:01:57]}  Qc6 {[%clk 0:02:13]} 20. Qd5 {[%clk 0:01:28]}  g5 {[%clk 0:02:08]} 21. Bg3 {[%clk 0:01:20]}  Bh6 {[%clk 0:02:05]} 22. Re7 {[%clk 0:01:11]}  g4+ {[%clk 0:01:56]} 23. Kb1 {[%clk 0:01:03]}  Rhe8 {[%clk 0:01:52]} 24. Qxc6+ {[%clk 0:01:02]}  bxc6 {[%clk 0:01:47]} 25. Rdxd7 {[%clk 0:01:01]}  Rxd7 {[%clk 0:01:44]} 26. Rxe8+ {[%clk 0:01:01]}  Kb7 {[%clk 0:01:45]} 27. Na4 {[%clk 0:01:01]}  Rd1+ {[%clk 0:01:39]} 28. Ka2 {[%clk 0:01:00]}  Rd2 {[%clk 0:01:40]} 29. Nxc5+ {[%clk 0:00:48]} 1-0


[Site "https://www.chess.com"]

[Event "Titled Tuesday Blitz August 09 Early 2022"]
[White "Martin Barcelo, Carles"]
[Black "Vasques, Antonio Pedro Freixial"]
[WhiteFideId "24561444"]
[BlackFideId "1908332"]
[WhiteElo "1922"]
[BlackElo "2243"]
[Result "1-0"]
[Round "07"]
[TimeControl "180+1"]
[Date "2022.08.09"]
[WhiteClock "0:00:47"]
[BlackClock "0:01:20"]

1. e4 {[%clk 0:02:49]}  c5 {[%clk 0:02:58]} 2. Nc3 {[%clk 0:02:46]}  Nc6 {[%clk 0:02:57]} 3. g3 {[%clk 0:02:41]}  g6 {[%clk 0:02:57]} 4. Bg2 {[%clk 0:02:41]}  Bg7 {[%clk 0:02:58]} 5. Nge2 {[%clk 0:02:41]}  Rb8 {[%clk 0:02:57]} 6. O-O {[%clk 0:02:37]}  b5 {[%clk 0:02:55]} 7. d3 {[%clk 0:02:35]}  b4 {[%clk 0:02:41]} 8. Nd5 {[%clk 0:02:32]}  e6 {[%clk 0:02:34]} 9. Ne3 {[%clk 0:02:32]}  Nge7 {[%clk 0:02:31]} 10. c3 {[%clk 0:02:30]}  bxc3 {[%clk 0:02:27]} 11. bxc3 {[%clk 0:02:31]}  O-O {[%clk 0:02:28]} 12. d4 {[%clk 0:02:22]}  cxd4 {[%clk 0:02:20]} 13. cxd4 {[%clk 0:02:23]}  d5 {[%clk 0:02:20]} 14. e5 {[%clk 0:02:22]}  Ba6 {[%clk 0:02:19]} 15. Re1 {[%clk 0:02:18]}  Qb6 {[%clk 0:02:15]} 16. Ba3 {[%clk 0:02:16]}  Rfc8 {[%clk 0:02:14]} 17. Bd6 {[%clk 0:02:02]}  Bxe2 {[%clk 0:02:02]} 18. Rxe2 {[%clk 0:01:57]}  Nxd4 {[%clk 0:01:51]} 19. Bxe7 {[%clk 0:01:54]}  Nxe2+ {[%clk 0:01:51]} 20. Qxe2 {[%clk 0:01:55]}  Bxe5 {[%clk 0:01:52]} 21. Rd1 {[%clk 0:01:50]}  Qb2 {[%clk 0:01:50]} 22. Rd2 {[%clk 0:01:36]}  Rc1+ {[%clk 0:01:47]} 23. Bf1 {[%clk 0:01:33]}  Qa1 {[%clk 0:01:44]} 24. Bg5 {[%clk 0:01:25]}  Rbb1 {[%clk 0:01:39]} 25. Rc2 {[%clk 0:01:05]}  Re1 {[%clk 0:01:26]} 26. Bh6 {[%clk 0:00:55]}  Rbc1 {[%clk 0:01:20]} 27. Qxe1 {[%clk 0:00:47]} 1-0


[Site "https://www.chess.com"]